fUST/lending_fUST_20250530
["ID","MTS","AMOUNT","RATE_DAILY","PERIOD"]
[362982194,1748542248567,-430.0,0.00019726,2]
[362982196,1748542248577,-430.0,0.00019726,2]
[362982198,1748542248587,-430.0,0.00019726,2]
[362982200,1748542248596,-430.0,0.00019726,2]
[362982202,1748542248605,-430.0,0.00019726,2]
[362982204,1748542248615,-430.0,0.00019726,2]
[362982206,1748542248624,-430.0,0.00019726,2]
[362982208,1748542248633,-450.26161383,0.00019726,2]
[362982210,1748542248643,-430.0,0.00019726,2]
[362982212,1748542248652,-571.35486077,0.00019726,2]
[362982214,1748542248662,-430.0,0.00019726,2]
[362982216,1748542248671,-430.0,0.00019726,2]
[362982218,1748542248680,-430.0,0.00019726,2]
[362982220,1748542248690,-430.0,0.00019726,2]
[362982222,1748542248699,-430.0,0.00019726,2]
[362982224,1748542248708,-430.0,0.00019726,2]
[362982226,1748542248717,-430.0,0.00019726,2]
[362982228,1748542248726,-430.0,0.00019726,2]
[362982230,1748542248735,-430.0,0.00019726,2]
[362982232,1748542248744,-430.0,0.00019726,2]
[362982234,1748542248754,-430.0,0.00019726,2]
[362982236,1748542248763,-430.0,0.00019726,2]
[362982238,1748542248772,-430.0,0.00019726,2]
[362982240,1748542248781,-430.0,0.00019726,2]
[362982242,1748542248790,-430.0,0.00019726,2]
[362982244,1748542248799,-430.0,0.00019726,2]
[362982246,1748542248808,-430.0,0.00019726,2]
[362982248,1748542248818,-430.0,0.00019726,2]
[362982250,1748542248827,-311.68518405,0.00019726,2]
[362982252,1748542248836,-430.0,0.00019726,2]
[362982253,1748542248846,-430.0,0.00019726,2]
[362982255,1748542248855,-430.0,0.00019726,2]
[362982257,1748542248865,-430.0,0.00019726,2]
[362982259,1748542248874,-430.0,0.00019726,2]
[362982261,1748542248883,-430.0,0.00019726,2]
[362982264,1748542248894,-430.0,0.00019726,2]
[362982266,1748542248904,-430.0,0.00019726,2]
[362982267,1748542248913,-430.0,0.00019726,2]
[362982269,1748542248922,-430.0,0.00019726,2]
[362982271,1748542248932,-430.0,0.00019726,2]
[362982274,1748542248943,-430.0,0.00019726,2]
[362982276,1748542248953,-430.0,0.00019726,2]
[362982277,1748542248962,-430.0,0.00019726,2]
[362982280,1748542248972,-430.0,0.00019726,2]
[362982281,1748542248982,-430.0,0.00019726,2]
[362982284,1748542248994,-430.0,0.00019726,2]
[362982285,1748542249003,-680.02,0.00019726,2]
[362982287,1748542249013,-430.0,0.00019726,2]
[362982289,1748542249022,-566.66,0.00019726,2]
[362982291,1748542249032,-430.0,0.00019726,2]
[362982293,1748542249042,-430.0,0.00019726,2]
[362982295,1748542249051,-430.0,0.00019726,2]
[362982297,1748542249060,-430.0,0.00019726,2]
[362982299,1748542249070,-430.0,0.00019726,2]
[362982301,1748542249079,-151.71191235,0.00019726,2]
[362982303,1748542249089,-430.0,0.00019726,2]
[362982305,1748542249099,-430.0,0.00019726,2]
[362982307,1748542249108,-430.0,0.00019726,2]
[362982309,1748542249119,-534.61,0.00019726,2]
[362982311,1748542249129,-430.0,0.00019726,2]
[362982313,1748542249138,-430.0,0.00019726,2]
[362982315,1748542249149,-450.0,0.00019726,2]
[362982318,1748542249159,-430.0,0.00019726,2]
[362982319,1748542249171,-430.0,0.00019726,2]
[362982321,1748542249180,-2344.39,0.00019726,2]
[362982331,1748542249190,-430.0,0.00019726,2]
[362982334,1748542249279,-430.0,0.00019726,2]
[362982336,1748542249289,-430.0,0.00019726,2]
[362982338,1748542249298,-430.0,0.00019726,2]
[362982340,1748542249308,-2070.61,0.00019726,2]
[362982342,1748542249317,-450.0,0.00019726,2]
[362982344,1748542249327,-430.0,0.00019726,2]
[362982346,1748542249336,-300.0,0.00019726,2]
[362982347,1748542249344,-430.0,0.00019726,2]
[362982349,1748542249354,-430.0,0.00019726,2]
[362982351,1748542249364,-430.0,0.00019726,2]
[362982353,1748542249373,-430.0,0.00019726,2]
[362982355,1748542249383,-430.0,0.00019726,2]
[362982357,1748542249392,-7146.31,0.00019726,2]
[362982359,1748542249405,-2731.81,0.00019726,2]
[362982361,1748542249415,-430.0,0.00019726,2]
[362982363,1748542249424,-430.0,0.00019726,2]
[362982365,1748542249433,-430.0,0.00019726,2]
[362982367,1748542249442,-423.52,0.00019726,2]
[362982369,1748542249451,-430.0,0.00019726,2]
[362982371,1748542249460,-430.0,0.00019726,2]
[362982374,1748542249470,-223.87608503,0.00019726,2]
[362982376,1748542249479,-509.66720677,0.00019726,2]
[362982378,1748542249489,-430.0,0.00019726,2]
[362982380,1748542249498,-2451.38,0.00019726,2]
[362982382,1748542249507,-514.69,0.00019726,2]
[362982384,1748542249518,-430.0,0.00019726,2]
[362982385,1748542249528,-430.0,0.00019726,2]
[362982388,1748542249538,-430.0,0.00019726,2]
[362982389,1748542249547,-430.0,0.00019726,2]
[362982391,1748542249557,-430.0,0.00019726,2]
[362982394,1748542249566,-430.0,0.00019726,2]
[362982396,1748542249576,-1063.98,0.00019726,2]
[362982398,1748542249585,-430.0,0.00019726,2]
[362982400,1748542249594,-1394.97,0.00019726,2]
[362982402,1748542249603,-430.0,0.00019726,2]
[362982404,1748542249612,-430.0,0.00019726,2]
[362982406,1748542249621,-6270.05,0.00019726,2]
[362982408,1748542249631,-430.0,0.00019726,2]
[362982410,1748542249641,-430.0,0.00019726,2]
[362982412,1748542249652,-430.0,0.00019726,2]
[362982414,1748542249661,-430.0,0.00019726,2]
[362982416,1748542249670,-430.0,0.00019726,2]
[362982418,1748542249679,-290.0,0.00019726,2]
[362982420,1748542249689,-6482.22,0.00019726,2]
[362982421,1748542249698,-430.0,0.00019726,2]
[362982424,1748542249708,-430.0,0.00019726,2]
[362982425,1748542249717,-430.0,0.00019726,2]
[362982427,1748542249726,-3164.14,0.00019726,2]
[362982429,1748542249735,-161.60626331,0.00019726,2]
[362982431,1748542249744,-430.0,0.00019726,2]
[362982433,1748542249753,-2152.2,0.00019726,2]
[362982435,1748542249762,-1252.48,0.00019726,2]
[362982437,1748542249771,-430.0,0.00019726,2]
[362982439,1748542249780,-430.0,0.00019726,2]
[362982441,1748542249790,-3469.37,0.00019726,2]
[362982443,1748542249799,-430.0,0.00019726,2]
[362982445,1748542249808,-2725.56,0.00019726,2]
[362982447,1748542249817,-430.0,0.00019726,2]
[362982449,1748542249827,-487.80841923,0.00019726,2]
[362982451,1748542249836,-430.0,0.00019726,2]
[362982453,1748542249845,-470.0,0.00019726,2]
[362982455,1748542249854,-430.0,0.00019726,2]
[362982457,1748542249863,-4404.76,0.00019726,2]
[362982459,1748542249872,-430.0,0.00019726,2]
[362982461,1748542249881,-430.0,0.00019726,2]
[362982462,1748542249890,-430.0,0.00019726,2]
[362982465,1748542249902,-2998.31,0.00019726,2]
[362982467,1748542249912,-430.0,0.00019726,2]
[362982469,1748542249923,-470.0,0.00019726,2]
[362982471,1748542249935,-430.0,0.00019726,2]
[362982474,1748542249954,-430.0,0.00019726,2]
[362982477,1748542249969,-190.0,0.00019726,2]
[362982479,1748542249985,-430.0,0.00019726,2]
[362982482,1748542250004,-650.63,0.00019726,2]
[362982485,1748542250021,-430.0,0.00019726,2]
[362982488,1748542250038,-430.0,0.00019726,2]
[362982491,1748542250054,-2687.64,0.00019726,2]
[362982492,1748542250071,-3760.2,0.00019726,2]
[362982493,1748542250086,-430.0,0.00019726,2]
[362982494,1748542250099,-430.0,0.00019726,2]
[362982495,1748542250114,-430.0,0.00019726,2]
[362982496,1748542250130,-430.0,0.00019726,2]
[362982497,1748542250149,-430.0,0.00019726,2]
[362982498,1748542250169,-430.0,0.00019726,2]
[362982499,1748542250181,-5322.44,0.00019726,2]
[362982500,1748542250196,-430.0,0.00019726,2]
[362982501,1748542250212,-493.24934284,0.00019726,2]
[362982502,1748542250225,-430.0,0.00019726,2]
[362982503,1748542250240,-430.0,0.00019726,2]
[362982504,1748542250252,-430.0,0.00019726,2]
[362982505,1748542250265,-3427.42,0.00019726,2]
[362982506,1748542250279,-677.52,0.00019726,2]
[362982507,1748542250292,-430.0,0.00019726,2]
[362982508,1748542250306,-348.81223921,0.00019726,2]
[362982509,1748542250320,-200.0,0.00019726,2]
[362982510,1748542250334,-430.0,0.00019726,2]
[362982511,1748542250347,-430.0,0.00019726,2]
[362982512,1748542250360,-430.0,0.00019726,2]
[362982513,1748542250374,-430.0,0.00019726,2]
[362982514,1748542250387,-818.87,0.00019726,2]
[362982515,1748542250402,-430.0,0.00019726,2]
[362982516,1748542250415,-430.0,0.00019726,2]
[362982517,1748542250428,-155.65,0.00019726,2]
[362982518,1748542250442,-430.0,0.00019726,2]
[362982519,1748542250455,-430.0,0.00019726,2]
[362982520,1748542250468,-430.0,0.00019726,2]
[362982521,1748542250482,-430.0,0.00019726,2]
[362982522,1748542250497,-793.39,0.00019726,2]
[362982523,1748542250510,-450.0,0.00019726,2]
[362982524,1748542250523,-481.49,0.00019726,2]
[362982525,1748542250536,-1482.97,0.00019726,2]
[362982526,1748542250550,-430.0,0.00019726,2]
[362982527,1748542250563,-2584.94,0.00019726,2]
[362982528,1748542250577,-430.0,0.00019726,2]
[362982529,1748542250591,-430.0,0.00019726,2]
[362982530,1748542250605,-430.0,0.00019726,2]
[362982531,1748542250614,-430.0,0.00019726,2]
[362982532,1748542250624,-430.0,0.00019726,2]
[362982533,1748542250633,-430.0,0.00019726,2]
[362982534,1748542250643,-502.84,0.00019726,2]
[362982535,1748542250655,-430.0,0.00019726,2]
[362982536,1748542250664,-590.34,0.00019726,2]
[362982537,1748542250674,-430.0,0.00019726,2]
[362982538,1748542250683,-152.89878652,0.00019726,2]
[362982539,1748542250693,-1878.48,0.00019726,2]
[362982540,1748542250702,-430.0,0.00019726,2]
[362982541,1748542250712,-3294.08,0.00019726,2]
[362982542,1748542250722,-431.64006525,0.00019726,2]
[362982543,1748542250732,-400.89997093,0.00019726,2]
[362982544,1748542250742,-430.0,0.00019726,2]
[362982545,1748542250752,-430.0,0.00019726,2]
[362982546,1748542250761,-430.0,0.00019726,2]
[362982547,1748542250771,-430.0,0.00019726,2]
[362982548,1748542250781,-430.0,0.00019726,2]
[362982549,1748542250791,-430.0,0.00019726,2]
[362982550,1748542250800,-430.0,0.00019726,2]
[362982551,1748542250994,-430.0,0.00019726,2]
[362982552,1748542251008,-430.0,0.00019726,2]
[362982553,1748542251018,-430.0,0.00019726,2]
[362982554,1748542251027,-430.0,0.00019726,2]
[362982555,1748542251037,-430.0,0.00019726,2]
[362982556,1748542251046,-430.0,0.00019726,2]
[362982557,1748542251055,-430.0,0.00019726,2]
[362982558,1748542251065,-430.0,0.00019726,2]
[362982559,1748542251074,-2403.0,0.0002,2]
[362982560,1748542251083,-430.0,0.0002,2]
[362982561,1748542251093,-430.0,0.0002,2]
[362982562,1748542251101,-430.0,0.0002,2]
[362982563,1748542251111,-460.48,0.0002,2]
[362982564,1748542251120,-430.0,0.0002,2]
[362982565,1748542251129,-430.0,0.0002,2]
[362982566,1748542251139,-180.94942677,0.0002,2]
[362982567,1748542251149,-430.0,0.0002,2]
[362982568,1748542251162,-430.0,0.0002,2]
[362982569,1748542251173,-430.0,0.0002,2]
[362982570,1748542251182,-430.0,0.0002,2]
[362982571,1748542251192,-430.0,0.0002,2]
[362982572,1748542251202,-2106.58,0.0002,2]
[362982573,1748542251212,-430.0,0.0002,2]
[362982574,1748542251221,-450.0,0.0002,2]
[362982575,1748542251231,-430.0,0.0002,2]
[362982576,1748542251241,-430.0,0.0002,2]
[362982577,1748542251252,-430.0,0.0002,2]
[362982578,1748542251261,-430.0,0.0002,2]
[362982579,1748542251271,-430.0,0.0002,2]
[362982580,1748542251280,-430.0,0.0002,2]
[362982581,1748542251290,-566.52,0.0002,2]
[362982582,1748542251300,-430.0,0.0002,2]
[362982583,1748542251309,-430.0,0.0002,2]
[362982584,1748542251319,-430.0,0.0002,2]
[362982585,1748542251328,-430.0,0.0002,2]
[362982586,1748542251338,-430.0,0.0002,2]
[362982587,1748542251348,-430.0,0.0002,2]
[362982588,1748542251357,-430.0,0.0002,2]
[362982589,1748542251367,-470.0,0.0002,2]
[362982590,1748542251377,-430.0,0.0002,2]
[362982591,1748542251387,-430.0,0.0002,2]
[362982592,1748542251396,-430.0,0.0002,2]
[362982593,1748542251406,-430.0,0.0002,2]
[362982594,1748542251415,-411.74044434,0.0002,2]
[362982595,1748542251425,-430.0,0.0002,2]
[362982596,1748542251434,-430.0,0.0002,2]
[362982597,1748542251443,-430.0,0.0002,2]
[362982598,1748542251453,-430.0,0.0002,2]
[362982599,1748542251463,-430.0,0.0002,2]
[362982600,1748542251472,-430.0,0.0002,2]
[362982601,1748542251481,-430.0,0.0002,2]
[362982602,1748542251490,-430.0,0.0002,2]
[362982603,1748542251500,-430.0,0.0002,2]
[362982604,1748542251510,-430.0,0.0002,2]
[362982605,1748542251519,-483.75,0.0002,2]
[362982606,1748542251529,-430.0,0.0002,2]
[362982607,1748542251538,-430.0,0.0002,2]
[362982608,1748542251548,-430.0,0.0002,2]
[362982609,1748542251558,-430.0,0.0002,2]
[362982610,1748542251568,-430.0,0.0002,2]
[362982611,1748542251577,-430.0,0.0002,2]
[362982612,1748542251587,-430.0,0.0002,2]
[362982613,1748542251596,-490.0,0.0002,2]
[362982614,1748542251607,-309.13487948,0.0002,2]
[362982615,1748542251618,-430.0,0.0002,2]
[362982616,1748542251627,-490.0,0.0002,2]
[362982617,1748542251636,-260.0,0.0002,2]
[362982618,1748542251647,-430.0,0.0002,2]
[362982619,1748542251657,-491.0112985,0.0002,2]
[362982620,1748542251666,-430.0,0.0002,2]
[362982621,1748542251676,-430.0,0.0002,2]
[362982622,1748542251685,-430.0,0.0002,2]
[362982623,1748542251694,-430.0,0.0002,2]
[362982624,1748542251703,-430.0,0.0002,2]
[362982625,1748542251713,-430.0,0.0002,2]
[362982626,1748542251721,-430.0,0.0002,2]
[362982627,1748542251731,-430.0,0.0002,2]
[362982628,1748542251740,-490.0,0.0002,2]
[362982629,1748542251749,-430.0,0.0002,2]
[362982630,1748542251759,-240.0,0.0002,2]
[362982631,1748542251768,-430.0,0.0002,2]
[362982632,1748542251777,-430.0,0.0002,2]
[362982633,1748542251786,-430.0,0.0002,2]
[362982634,1748542251795,-430.0,0.0002,2]
[362982635,1748542251805,-430.0,0.0002,2]
[362982636,1748542251814,-430.0,0.0002,2]
[362982637,1748542251824,-680.02,0.0002,2]
[362982638,1748542251833,-430.0,0.0002,2]
[362982639,1748542251842,-430.0,0.0002,2]
[362982640,1748542251851,-430.0,0.0002,2]
[362982641,1748542251860,-430.0,0.0002,2]
[362982642,1748542251869,-430.0,0.0002,2]
[362982643,1748542251878,-430.0,0.0002,2]
[362982644,1748542251886,-430.0,0.0002,2]
[362982645,1748542251895,-430.0,0.0002,2]
[362982646,1748542251904,-534.61,0.0002,2]
[362982647,1748542251913,-430.0,0.0002,2]
[362982648,1748542251922,-430.0,0.0002,2]
[362982649,1748542251931,-430.0,0.0002,2]
[362982650,1748542251939,-2344.39,0.0002,2]
[362982651,1748542251948,-430.0,0.0002,2]
[362982652,1748542251957,-166.87778559,0.0002,2]
[362982653,1748542251966,-498.06,0.0002,2]
[362982654,1748542251975,-300.54687953,0.0002,2]
[362982655,1748542251984,-2070.61,0.0002,2]
[362982656,1748542251993,-408.6563908,0.0002,2]
[362982657,1748542252002,-430.0,0.0002,2]
[362982658,1748542252011,-430.0,0.0002,2]
[362982659,1748542252019,-430.0,0.0002,2]
[362982660,1748542252028,-430.0,0.0002,2]
[362982661,1748542252037,-430.0,0.0002,2]
[362982662,1748542252046,-2731.81,0.0002,2]
[362982663,1748542252055,-7146.31,0.0002,2]
[362982664,1748542252063,-430.0,0.0002,2]
[362982665,1748542252072,-430.0,0.0002,2]
[362982666,1748542252082,-470.0,0.0002,2]
[362982667,1748542252091,-430.0,0.0002,2]
[362982668,1748542252101,-430.0,0.0002,2]
[362982669,1748542252110,-292.28529561,0.0002,2]
[362982670,1748542252120,-2451.38,0.0002,2]
[362982671,1748542252130,-514.69,0.0002,2]
[362982672,1748542252139,-430.0,0.0002,2]
[362982673,1748542252149,-430.0,0.0002,2]
[362982674,1748542252163,-430.0,0.0002,2]
[362982675,1748542252173,-430.0,0.0002,2]
[362982676,1748542252183,-430.0,0.0002,2]
[362982677,1748542252193,-1063.98,0.0002,2]
[362982678,1748542252203,-430.0,0.0002,2]
[362982679,1748542252212,-1394.97,0.0002,2]
[362982680,1748542252223,-486.55,0.0002,2]
[362982681,1748542252232,-430.0,0.0002,2]
[362982682,1748542252243,-6270.05,0.0002,2]
[362982683,1748542252253,-430.0,0.0002,2]
[362982684,1748542252262,-430.0,0.0002,2]
[362982685,1748542252272,-430.0,0.0002,2]
[362982686,1748542252282,-195.92,0.0002,2]
[362982687,1748542252291,-430.0,0.0002,2]
[362982688,1748542252301,-6482.22,0.0002,2]
[362982689,1748542252311,-430.0,0.0002,2]
[362982690,1748542252321,-362.09002681,0.0002,2]
[362982691,1748542252331,-3164.14,0.0002,2]
[362982692,1748542252342,-430.0,0.0002,2]
[362982693,1748542252351,-2152.2,0.0002,2]
[362982694,1748542252361,-1252.48,0.0002,2]
[362982695,1748542252370,-430.0,0.0002,2]
[362982696,1748542252380,-430.0,0.0002,2]
[362982697,1748542252389,-3469.37,0.0002,2]
[362982698,1748542252399,-184.11595402,0.0002,2]
[362982699,1748542252409,-2725.56,0.0002,2]
[362982700,1748542252419,-430.0,0.0002,2]
[362982701,1748542252428,-430.0,0.0002,2]
[362982702,1748542252438,-364.72,0.0002,2]
[362982703,1748542252448,-4404.76,0.0002,2]
[362982704,1748542252457,-430.0,0.0002,2]
[362982705,1748542252467,-430.0,0.0002,2]
[362982706,1748542252476,-430.0,0.0002,2]
[362982707,1748542252485,-2998.31,0.0002,2]
[362982708,1748542252495,-266.25652218,0.0002,2]
[362982709,1748542252504,-290.0,0.0002,2]
[362982710,1748542252514,-220.0,0.0002,2]
[362982711,1748542252523,-650.63,0.0002,2]
[362982712,1748542252533,-190.0,0.0002,2]
[362982713,1748542252542,-270.0,0.0002,2]
[362982714,1748542252552,-2687.64,0.0002,2]
[362982715,1748542252561,-3760.2,0.0002,2]
[362982716,1748542252571,-430.0,0.0002,2]
[362982717,1748542252580,-430.0,0.0002,2]
[362982718,1748542252590,-493.14642579,0.0002,2]
[362982719,1748542252599,-430.0,0.0002,2]
[362982720,1748542252608,-430.0,0.0002,2]
[362982721,1748542252619,-5322.44,0.0002,2]
[362982722,1748542252630,-430.0,0.0002,2]
[362982723,1748542252639,-221.48193332,0.0002,2]
[362982724,1748542252649,-450.0,0.0002,2]
[362982725,1748542252658,-430.0,0.0002,2]
[362982726,1748542252667,-3427.42,0.0002,2]
[362982727,1748542252677,-677.52,0.0002,2]
[362982728,1748542252686,-430.0,0.0002,2]
[362982729,1748542252695,-544.07854985,0.0002,2]
[362982730,1748542252705,-430.0,0.0002,2]
[362982731,1748542252714,-574.15922151,0.0002,2]
[362982732,1748542252723,-430.0,0.0002,2]
[362982733,1748542252732,-818.87,0.0002,2]
[362982734,1748542252742,-430.0,0.0002,2]
[362982735,1748542252753,-430.0,0.0002,2]
[362982736,1748542252763,-430.0,0.0002,2]
[362982737,1748542252772,-430.0,0.0002,2]
[362982738,1748542252781,-430.0,0.0002,2]
[362982739,1748542252791,-473.12,0.0002,2]
[362982740,1748542252801,-793.39,0.0002,2]
[362982741,1748542252814,-481.49,0.0002,2]
[362982742,1748542252824,-1482.97,0.0002,2]
[362982743,1748542252835,-570.0,0.0002,2]
[362982744,1748542252844,-2584.94,0.0002,2]
[362982745,1748542252854,-570.0,0.0002,2]
[362982746,1748542252864,-430.0,0.0002,2]
[362982747,1748542252873,-155.83,0.0002,2]
[362982748,1748542252883,-430.0,0.0002,2]
[362982749,1748542252892,-430.0,0.0002,2]
[362982750,1748542252902,-590.34,0.0002,2]
[362982751,1748542252912,-430.0,0.0002,2]
[362982752,1748542252922,-1878.48,0.0002,2]
[362982753,1748542252932,-430.0,0.0002,2]
[362982754,1748542252941,-3294.08,0.0002,2]
[362982755,1748542252953,-430.0,0.0002,2]
[362982756,1748542252962,-430.0,0.0002,2]
[362982757,1748542252972,-430.0,0.0002,2]
[362982758,1748542252981,-430.0,0.0002,2]
[362982759,1748542252990,-430.0,0.0002,2]
[362982760,1748542253000,-157.34241287,0.0002,2]
[362982761,1748542253009,-430.0,0.0002,2]
[362982762,1748542253019,-430.0,0.0002,2]
[362982763,1748542253028,-310.97566826,0.0002,2]
[362982764,1748542253037,-430.0,0.0002,2]
[362982765,1748542253047,-430.0,0.0002,2]
[362982766,1748542253056,-190.55856551,0.00020071,2]
[362982767,1748542253065,-810.768186,0.00020187,2]
[362982768,1748542253075,-151.0,0.000202,4]
[362982769,1748542253084,-12660.97845086,0.00020248,2]
[362982770,1748542253093,-160.0,0.00020248,2]
[362982771,1748542253103,-160.0,0.00020248,2]
[362982772,1748542253113,-160.0,0.00020248,2]
[362982773,1748542253122,-212.70147903,0.00020248,2]
[362982774,1748542253131,-229.26895353,0.00020248,2]
[362982775,1748542253141,-160.0,0.00020248,2]
[362982776,1748542253151,-422.19396894,0.00020251,2]
[362982777,1748542253164,-842.5625,0.00020251,2]
[362982778,1748542253175,-460.0,0.00020273,2]
[362982779,1748542253184,-267.24,0.00020273,2]
[362982780,1748542253194,-430.0,0.00020273,2]
[362982781,1748542253205,-430.0,0.00020273,2]
[362982782,1748542253214,-430.0,0.00020273,2]
[362982783,1748542253224,-430.0,0.00020273,2]
[362982784,1748542253234,-430.0,0.00020273,2]
[362982785,1748542253244,-151.02360114,0.00020273,2]
[362982786,1748542253253,-2106.58,0.00020273,2]
[362982787,1748542253264,-430.0,0.00020273,2]
[362982788,1748542253273,-430.0,0.00020273,2]
[362982789,1748542253284,-430.0,0.00020273,2]
[362982790,1748542253293,-430.0,0.00020273,2]
[362982791,1748542253303,-430.0,0.00020273,2]
[362982792,1748542253313,-430.0,0.00020273,2]
[362982793,1748542253322,-430.0,0.00020273,2]
[362982794,1748542253331,-430.0,0.00020273,2]
[362982795,1748542253341,-430.0,0.00020273,2]
[362982796,1748542253351,-430.0,0.00020273,2]
[362982797,1748542253362,-430.0,0.00020273,2]
[362982798,1748542253371,-430.0,0.00020273,2]
[362982799,1748542253382,-558.32,0.00020273,2]
[362982800,1748542253393,-430.0,0.00020273,2]
[362982801,1748542253404,-430.0,0.00020273,2]
[362982802,1748542253413,-430.0,0.00020273,2]
[362982803,1748542253423,-516.52846748,0.00020273,2]
[362982804,1748542253434,-430.0,0.00020273,2]
[362982805,1748542253444,-430.0,0.00020273,2]
[362982806,1748542253455,-529.62203708,0.00020273,2]
[362982807,1748542253465,-430.0,0.00020273,2]
[362982808,1748542253474,-430.0,0.00020273,2]
[362982809,1748542253485,-430.0,0.00020273,2]
[362982810,1748542253494,-430.0,0.00020273,2]
[362982811,1748542253587,-430.0,0.00020273,2]
[362982812,1748542253611,-430.0,0.00020273,2]
[362982813,1748542253620,-390.0,0.00020273,2]
[362982814,1748542253630,-430.0,0.00020273,2]
[362982815,1748542253639,-430.0,0.00020273,2]
[362982816,1748542253649,-430.0,0.00020273,2]
[362982817,1748542253658,-430.0,0.00020273,2]
[362982818,1748542253668,-430.0,0.00020273,2]
[362982819,1748542253677,-430.0,0.00020273,2]
[362982820,1748542253687,-430.0,0.00020273,2]
[362982821,1748542253696,-430.0,0.00020273,2]
[362982822,1748542253705,-430.0,0.00020273,2]
[362982823,1748542253714,-430.0,0.00020273,2]
[362982824,1748542253723,-430.0,0.00020273,2]
[362982825,1748542253732,-430.0,0.00020273,2]
[362982826,1748542253742,-547.602809,0.00020273,2]
[362982827,1748542253752,-430.0,0.00020273,2]
[362982828,1748542253761,-430.0,0.00020273,2]
[362982829,1748542253771,-270.0,0.00020273,2]
[362982830,1748542253780,-430.0,0.00020273,2]
[362982831,1748542253789,-430.0,0.00020273,2]
[362982832,1748542253799,-430.0,0.00020273,2]
[362982833,1748542253808,-285.75777632,0.00020273,2]
[362982834,1748542253817,-680.02,0.00020273,2]
[362982835,1748542253826,-292.79197356,0.00020273,2]
[362982836,1748542253836,-430.0,0.00020273,2]
[362982837,1748542253845,-357.86,0.00020273,2]
[362982838,1748542253855,-430.0,0.00020273,2]
[362982839,1748542253864,-430.0,0.00020273,2]
[362982840,1748542253874,-430.0,0.00020273,2]
[362982841,1748542253883,-430.0,0.00020273,2]
[362982842,1748542253892,-490.0,0.00020273,2]
[362982843,1748542253902,-534.61,0.00020273,2]
[362982844,1748542253911,-430.0,0.00020273,2]
[362982845,1748542253920,-430.0,0.00020273,2]
[362982846,1748542253929,-430.0,0.00020273,2]
[362982847,1748542253938,-2344.39,0.00020273,2]
[362982848,1748542253947,-430.0,0.00020273,2]